Cogmind - Beta 11.1 --- EXPLORER MODE // 2022.05.23 @ 15:45:46 Player: C4ckw1z11 Result: Self-destructed Performance ------------- Evolutions (1) 500 Regions Visited (2) 400 Robots Destroyed (14) 70 Value Destroyed (365) 365 Prototype IDs (1) 20 Alien Tech Used (0) 0 Bonus (0) 0 TOTAL SCORE: 1355 Bonus ------- None Cogmind --------- Core Integrity 370/400 Matter 300/300 Energy 125/125 System Corruption 0% Temperature Cool (0) Movement Treading (160) Location -9/Materials Parts ------- > --- POWER (1) -------- Light Ion Engine > --- PROPULSION (3) --- Light Treads Light Treads Light Treads > --- UTILITY (3) ------ Improved Heat Sink Light Armor Plating Tractor Beam > --- WEAPON (3) ------- Field Laser Heavy Assault Rifle Heavy Assault Rifle > --- INVENTORY (5) ---- Improved Assault Rifle Peak State ------------ > --- POWER ------------ Light Ion Engine > --- PROPULSION ------- Light Treads Light Treads Light Treads > --- UTILITY ---------- Improved Heat Sink Light Armor Plating Tractor Beam > --- WEAPON ----------- Field Laser Improved Assault Rifle Improved Assault Rifle > --- INVENTORY -------- Light Cannon [Rating: 18] Favorites ----------- Power Light Ion Engine Engine Light Ion Engine Propulsion Light Treads Treads Light Treads Utility Light Armor Plating Device Tractor Beam Storage Medium Storage Unit Protection Light Armor Plating Weapon Improved Assault Rifle Energy Gun Field Laser Energy Cannon Particle Cannon Ballistic Gun Improved Assault Rifle Ballistic Cannon Light Cannon Impact Weapon Mace Build | -11 -10 -9 ------- Run | Scr Mat Mat Slots Evolved 3 | . 1 2 Power . | . . . Propulsion 1 | . 1 . Utility 1 | . . 1 Weapon 1 | . . 1 Parts Attached 26 | 8 11 7 Power 1 | 1 . . Engine 1 | 1 . . Core . | . . . Reactor . | . . . Propulsion 3 | 2 . 1 Treads 3 | 2 . 1 Leg . | . . . Wheel . | . . . Hover . | . . . Flight . | . . . Utility 6 | 3 2 1 Device 3 | 1 2 . Storage 1 | 1 . . Processor . | . . . Hackware . | . . . Protection 2 | 1 . 1 Artifact . | . . . Weapon 16 | 2 9 5 Energy Gun 5 | 2 2 1 Energy Cannon 2 | . 2 . Ballistic Gun 6 | . 3 3 Ballistic Cannon 1 | . . 1 Launcher . | . . . Special Weapon . | . . . Impact Weapon 2 | . 2 . Slashing Weapon . | . . . Piercing Weapon . | . . . Special Melee Weapon . | . . . Unidentified Prototypes 1 | . 1 . Parts Lost . | . . . Power . | . . . Propulsion . | . . . Utility . | . . . Weapon . | . . . Highest Loss Streak . | . . . To Critical Strikes . | . . . Average Slot Usage (%) 89 | . 87 95 Engine 11 | . 12 10 Treads 25 | . 25 26 Device 18 | . 18 20 Protection 7 | . 6 10 Energy Gun 3 | . 2 7 Energy Cannon 2 | . 3 . Ballistic Gun 18 | . 17 20 Impact Weapon 1 | . 1 . Naked Turns . | . . . Heaviest Build 17 | 10 15 17 Greatest Support 60 | 40 40 60 Greatest Overweight (x) . | . . . Average Overweight (x) . | . . . Largest Inventory Capacity 10 | 10 5 5 Average Capacity 5 | 5 5 5 Most Carried 4 | 4 4 2 Average Carried . | . . . Final Capacity 5 | 5 5 5 Final Carried 1 | . 1 1 Class Distribution -------------------- 79% | Hacker-Mutant 20% | Hacker-Tank Dominant Class ---------------- Hacker-Mutant | -10/Materials Hacker-Tank | -9/Materials Resources | -11 -10 -9 ----------- Run | Scr Mat Mat Matter Collected 640 | 230 287 123 Remotely 356 | . 233 123 Salvage Created 414 | . 271 143 Parts 27 | . 20 7 Haulers Intercepted . | . . . Recyclers Shooed 1 | . 1 . Parts Field Recycled . | . . . Retrieved Matter . | . . . Parts Self-Destructed . | . . . Prevented . | . . . Kills | -11 -10 -9 ------- Run | Scr Mat Mat Combat Hostiles Destroyed 10 | . 7 3 Guns 9 | . 7 2 AOE 1 | . . 1 Classes Destroyed 6 | . 4 2 Tunneler 1 | . 1 . Watcher 3 | . 3 . Swarmer 4 | . 4 . Grunt 4 | . 3 1 Brawler 1 | . . 1 Sentry 1 | . . 1 Best Kill Streak 3 | . 3 2 Combat Bots Only 2 | . 2 2 Max Kills in Single Turn 2 | . 2 1 Gunslinging 1 | . 1 . Exploded 1 | . . 1 Melee . | . . . Uniques/NPCs Destroyed . | . . . Combat | -11 -10 -9 -------- Run | Scr Mat Mat Damage Taken 264 | . 129 135 Core 35 | . 5 30 Absorbed by Shields . | . . . Core Remaining (%) 99 | 100 98 . Volleys Fired 35 | . 26 9 Largest 3 | . 2 3 Hottest 136 | . 136 109 Shots Fired 73 | . 52 21 Gun 69 | . 48 21 Cannon 4 | . 4 . Launcher . | . . . Special . | . . . Kinetic 60 | . 48 12 Thermal 13 | . 4 9 Explosive . | . . . Electromagnetic . | . . . Robot Hit Streak 16 | . 16 9 Robot Miss Streak 2 | . 2 1 Penetration Max . | . . . Secondary Targets 1 | . 1 . Max Gunslinging Chain 1 | . 1 . Shots Hit Robots 56 | . 39 17 Core Hits 18 | . 13 5 Critical Kills . | . . . Critical Parts Destroyed 1 | . 1 . Critical Strikes 1 | . 1 . Destroy 1 | . 1 . Melee Attacks . | . . . Impact . | . . . Slashing . | . . . Piercing . | . . . Sneak Attacks . | . . . Combat Hostiles . | . . . Follow-up Attacks . | . . . Damage Inflicted 846 | . 557 289 Guns 749 | . 516 233 Cannons 41 | . 41 . Explosions 47 | . . 47 Melee . | . . . Ramming 9 | . . 9 Kinetic 633 | . 516 117 Thermal 157 | . 41 116 Explosive 47 | . . 47 Electromagnetic . | . . . Impact . | . . . Slashing . | . . . Piercing . | . . . Highest Corruption . | . . . Average Corruption . | . . . Corruption Purged . | . . . Corruption Blocked . | . . . Overload Shots . | . . . Overflow Damage . | . . . Projectiles . | . . . Explosions . | . . . Melee . | . . . Knockbacks . | . . . Impact . | . . . Kinetic . | . . . Secondary . | . . . Self-Inflicted Damage 65 | . . 65 Shots 1 | . . 1 Rammed 2 | . . 2 Targets Rammed 2 | . . 2 Kicked . | . . . Crushed . | . . . Highest Temperature 136 | . 136 18 Average Temperature 30 | . 44 7 Received Heat Transfer 111 | . 60 51 Siege Activations . | . . . Robots Corrupted . | . . . Combat Hostiles . | . . . Parts Fried . | . . . Impact Corruptions . | . . . Robots Melted . | . . . Combat Hostiles . | . . . Parts Melted 1 | . . 1 Heat Transferred 333 | . 74 259 Parts Sabotaged . | . . . Parts Stolen . | . . . Parts Stripped . | . . . Power Chain Reactions . | . . . Missiles Intercepted . | . . . Alert | -11 -10 -9 ------- Run | Scr Mat Mat Peak Influence 183 | . 183 151 Initial . | . . . Average 48 | . 42 80 Maximum Alert Level . | . . . Low Security (%) 100 | 100 100 100 Level 1 . | . . . Level 2 . | . . . Level 3 . | . . . Level 4 . | . . . Level 5 . | . . . High Security . | . . . Max Security . | . . . Squads Dispatched . | . . . Investigation . | . . . Extermination . | . . . Reinforcement . | . . . Assault . | . . . Garrison . | . . . Intercept . | . . . Searches Triggered . | . . . Construction Impeded . | . . . Haulers Reinforced . | . . . Active Scanning Responses . | . . . Cargo Convoy Interrupts . | . . . Stealth | -11 -10 -9 --------- Run | Scr Mat Mat Distress Signals 3 | . 2 1 Communications Jammed . | . . . Distress Signals . | . . . Times Spotted 17 | . 13 4 Peak Tracking Total 3 | . 3 2 Tactical Retreats . | . . . Traps | -11 -10 -9 ------- Run | Scr Mat Mat Traps Triggered 1 | . 1 . Indirectly . | . . . Trap Hack Attempts . | . . . Triggered . | . . . Disarmed . | . . . Reprogrammed . | . . . Reused . | . . . Traps Extracted . | . . . Installed . | . . . Triggered . | . . . Machines | -11 -10 -9 ---------- Run | Scr Mat Mat Machines Disabled 4 | . 2 2 Max in Single Turn 2 | . 1 2 Machines Sabotaged . | . . . Garrisons Compromised . | . . . Overloaded Fab Kills . | . . . Hacking | -11 -10 -9 --------- Run | Scr Mat Mat Machines Accessed . | . . . Terminals . | . . . Fabricators . | . . . Repair Stations . | . . . Recycling Units . | . . . Scanalyzers . | . . . Garrison Access . | . . . Total Hacks . | . . . Successful . | . . . Failed . | . . . Catastrophic . | . . . Database Lockouts . | . . . Manual . | . . . Terminals . | . . . Fabricators . | . . . Repair Stations . | . . . Recycling Units . | . . . Scanalyzers . | . . . Garrison Access . | . . . Terminal Hacks . | . . . Fabricator Hacks . | . . . Repair Station Hacks . | . . . Recycling Unit Hacks . | . . . Scanalyzer . | . . . Garrison Access Hacks . | . . . Unauthorized Hacks . | . . . Terminals . | . . . Fabricators . | . . . Repair Stations . | . . . Recycling Units . | . . . Scanalyzers . | . . . Garrison Access . | . . . Data Cores Recovered . | . . . Used . | . . . Hacking Detections . | . . . Full Trace Events . | . . . Feedback Events . | . . . Feedback Blocked . | . . . Robot Schematics Acquired . | . . . Robots Built . | . . . Authchips . | . . . Time . | . . . Total Robot Build Rating . | . . . Part Schematics Acquired . | . . . Parts Built . | . . . Authchips . | . . . Time . | . . . Total Part Build Rating . | . . . Parts Repaired . | . . . Time . | . . . Parts Recycled . | . . . Recycled Matter . | . . . Retrieved Matter . | . . . Retrieved Components . | . . . Parts Scanalyzed . | . . . Part Schematics Acquired . | . . . Parts Damaged . | . . . Bothacking | -11 -10 -9 ------------ Run | Scr Mat Mat Used RIF Installer . | . . . Robots Hacked . | . . . Non-combat . | . . . Combat . | . . . Robot Hacks Applied . | . . . Relay Couplers Released . | . . . Fabnet Peak Effective % . | . . . Robots Rewired . | . . . Allies Hacked . | . . . Hacks Repelled . | . . . Allies | -11 -10 -9 -------- Run | Scr Mat Mat Total Allies . | . . . Largest Group . | . . . Highest-Rated Group . | . . . Highest-Rated Ally . | . . . Total Orders . | . . . Ally Attacks . | . . . Total Damage . | . . . Kills . | . . . Allies Corrupted . | . . . Allies Melted . | . . . Intel | -11 -10 -9 ------- Run | Scr Mat Mat Robot Analysis Total . | . . . Derelict Logs Recovered . | . . . Drone Launches . | . . . Drone Recoveries . | . . . Exploration | -11 -10 -9 ------------- Run | Scr Mat Mat Turns Passed 1583 | 119 1059 405 Spaces Moved 806 | 65 586 155 Core 22 | 22 . . Treads 784 | 43 586 155 Legs . | . . . Wheels . | . . . Hover . | . . . Flight . | . . . Fastest Speed 50 | 50 160 160 Average Speed 156 | 122 160 160 Slowest Speed 160 | 160 160 160 Overloaded Moves . | . . . Propulsion Burnouts . | . . . Robots Hopped . | . . . Cave-ins Triggered . | . . . Exploration Rate (%) 30 | 5 71 15 Regions Visited 2 Branch Regions . Pre-discovered Areas . | . . . Known Exits Taken 2 | 1 1 . Unknown Exits Taken . | . . . Scrap Searched . | . . . Spaces Dug . | . . . Terrain Destroyed 15 | . . 15 Melee . | . . . Projectile . | . . . AOE 15 | . . 15 Terrain Rammed . | . . . Walls Destroyed . | . . . Machines Disabled . | . . . Actions | -11 -10 -9 --------- Run | Scr Mat Mat Total 1055 | 105 657 293 Wait 153 | 24 16 113 Move 804 | 64 585 155 Hop . | . . . Pick Up 22 | 8 9 5 Fast Attach . | . . . Attach 14 | 8 3 3 Detach 2 | . 2 . Swap 12 | . 8 4 Drop 11 | 1 8 2 Fire 35 | . 26 9 Melee . | . . . Ram . | . . . Kick . | . . . Crush 2 | . . 2 Escape Stasis . | . . . Rewire . | . . . Trap . | . . . Miscellaneous . | . . . Route ------- -11/Scrapyard -10/Materials (discovered 3 exits: *Mat x2 / *Min) -9/Materials History --------- Turn | Location | Event 10 | -11/Scrapyard | Identified exit to Materials 10 | -11/Scrapyard | Discovered exit to Materials (range 15) 120 | -11/Scrapyard | Entered Materials 120 | -10/Materials | Evolved 1 slot: Propulsion x1 308 | -10/Materials | Build established: Hacker-Mutant 499 | -10/Materials | Identified exit to Mines 499 | -10/Materials | Discovered exit to Mines (range 12) 571 | -10/Materials | Identified exit to Materials 571 | -10/Materials | Discovered exit to Materials (range 5) 866 | -10/Materials | Discovered exit to Materials (range 15) 1179 | -10/Materials | Entered another Materials area 1179 | -9/Materials | Evolved 2 slots: Utility x1, Weapon x1 1548 | -9/Materials | Build established: Hacker-Tank 1584 | -9/Materials | Self-destructed Last Messages --------------- U-05 Engineer builds a Wall. U-05 Engineer lays Concrete. U-05 Engineer builds a Wall. U-05 Engineer lays Concrete. U-05 Engineer builds a Wall. U-05 Engineer lays Concrete. U-05 Engineer builds a Wall. U-05 Engineer builds a Door. U-05 Engineer builds a Wall. U-05 Engineer lays Concrete. U-05 Engineer builds a Wall. Acquired Hvy. Assault Rifle. Dropped Imp. Assault Rifle. Dropped Lgt. Cannon. Y-45 Defender destroyed. Acquired 22 matter. Acquired Hvy. Assault Rifle. Acquired 10 matter. Slammed into K-01 Serf. K-01 Serf distress signal alerts nearby ally. Map ----- +----------------------------------------------------+ | ???????????? ???"" """ ?????????????######### | | ????????????? ??? ??????????????# * | | ?????????????? #######+#######?????????# """ | | ????????#+###+##### # # #?????????# """ | | ######### # # #?????????# """ % | | # # # + #?????????# | | # # #??#"" # #?????????# """ | | # [ # #??#"T # #?????????# """ | | # # ####" ###+###????????# """ | | # + #????????? | | # # +????????######### | | # ][ # ##### % ## ###+#+#????????????????? | | # # #???# ### #???#+############ | | ######### #???# [!!!!###"" ##### | | # + #???#[[!!!!#?#"T + | | #""" # #???########?#"" ! ##### | | #""" # #????????????# ] #???######## ### | | #""" # #????????????# #??????????# #?? | | #""" # =#####################??????????# #?? | | #""" +*%! #????????????????# +?? | | # # % ######## #????????????????# #?? | | # "" / ##+###+####????# #????????????????+ #?? | | # S"" # #????# #????????????????# #?? | | # "" # # ??# #????????????????# #?? | | # # """ """ #"" #%##+#?????????????# #?? | | ### ##### """ """ #"" /@ #?????????????# #?? | | ??##????# """ """ #"T # #?????????????# #?? | | ????????# #"" # #?????????????# #?? | | ????????# #"" ?#r #?????????????# #?? | | ????????# # ??#u #?????????????? ??? | | ????????############???# #???????????????????? | | ???????????????????????#k ???????????????????? | | ???????????????????????# ##+##??????????????????? | | ???????????????????????# #? ???????????????????? | | ???????????????????????? ?? "???????????????????? | | ???????????????????????? ?? "T??????????????????? | | ???????????????????????? ??? ???????????????????? | | ???????????????????????? ??? ???????????????????? | | ????????????????????????u??? ???????????????????? | | ???????????????????????? ???????????????????????? | | ???????????????????????? ???????????????????????? | | ????????????????????????????????????????????????? | | ????????????????????????????????????????????????? | | ????????????????????????????????????????????????? | | ????????????????????????????????????????????????? | | ????????????????????????????????????????????????? | | ????????????????????????????????????????????????? | | ????????????????????????????????????????????????? | | ????????????????????????????????????????????????? | | ????????????????????????????????????????????????? | +----------------------------------------------------+ Best States ------------- Heat Dissipation 42 Energy Generation 10 Energy Capacity 125 Matter Stores 300 Matter Capacity 300 Sight Range 16 Terrain Scan Range 14 Terrain Scan Density 10 Armor Coverage 150 Resistance: KI 35 Resistance: TH 35 Resistance: EX 35 Resistance: EM 35 Resistance: I 35 Resistance: S 35 Resistance: P 35 Evasion (%) 50 Recoil Reduction 3 Offensive Hacking 20 Item Schematics ----------------- None Robot Schematics ------------------ None Fabricated ------------ Nothing Alien Tech Used ----------------- None Achievements -------------- Risk Taker Challenges ------------ None Game ------ Seed MicroParticleGreatsword Manual? 0 Play Time 00:11:03 Cumulative 1.6 hours Start 2022.05.23 @ 07:00:43 End 2022.05.23 @ 15:45:46 Sessions 5 Manual Loads 0 Difficulty Explorer Special Mode None Game No. 6 Rogue 0 Adventurer 0 Explorer 6 Win Type - Total 0 Types 0/0/0/0/0/0/0/0/0 Lore% 2 Gallery% 6 Achievement% 7 Wizard Run 0 Options --------- ASCII 0 Keyboard 0 Movement Mouse Keybinds 0 Fullscreen 1 Font 18/SmallcapsGlow Map View 76x50 Tactical HUD 0 Map Filters NONE Filters NONE Steam 1 RUN: 3cd6209d-4d03-44ea-8279-2ef2372ed4df